bitfinex-derivatives/quotes_ETHF0:USTF0_20250614
["timestamp","ask_amount","ask_price","bid_price","bid_amount"]
[1749931098805,0.79666,2509.5,2509.4,4.00448]
[1749931099809,0.79666,2509.5,2509.4,0.79668]
[1749931100314,0.79666,2509.6,2509.5,0.86473268]
[1749931100509,1.90784855,2509.6,2509.5,0.86473268]
[1749931100715,0.79666,2509.6,2509.5,0.86473268]
[1749931102213,0.79663,2509.7,2509.6,0.7966]
[1749931102416,0.79663,2509.7,2509.6,1.4311]
[1749931102417,1.90848212,2509.7,2509.6,1.4311]
[1749931103619,1.11185212,2509.7,2509.6,1.4311]
[1749931104418,1.90845212,2509.7,2509.6,1.4311]
[1749931105818,1.11185212,2509.7,2509.6,1.4311]
[1749931106016,1.90845212,2509.7,2509.6,1.4311]
[1749931106413,1.90845212,2509.7,2509.6,0.6345]
[1749931106611,1.90845212,2509.7,2509.6,1.43113]
[1749931106918,1.11185212,2509.7,2509.6,4.63893]
[1749931107110,1.90845212,2509.7,2509.6,5.96973]
[1749931107417,1.11185212,2509.7,2509.6,5.96973]
[1749931108011,1.90845212,2509.7,2509.6,5.96973]
[1749931108216,1.11185212,2509.7,2509.6,5.96973]
[1749931108722,0.79659,2509.8,2509.7,0.7966]
[1749931108921,1.90991521,2509.8,2509.7,0.7966]
[1749931109723,0.7966,2509.7,2509.6,5.96971]
[1749931109923,1.90992521,2509.7,2509.6,5.96971]
[1749931110323,1.11332521,2509.7,2509.6,5.96971]
[1749931110523,0.64827491,2510.0,2509.7,0.7966]
[1749931110524,0.79657,2509.8,2509.7,0.7966]
[1749931110725,1.11349092,2509.9,2509.6,7.16466]
[1749931110918,1.11349092,2509.8,2509.7,2.0581]
[1749931111220,1.11349092,2509.8,2509.7,0.7966]
[1749931111923,1.91006092,2509.8,2509.7,0.7966]
[1749931112222,0.7966,2509.7,2509.6,4.6389]
[1749931112524,1.91009092,2509.7,2509.6,4.6389]
[1749931113624,1.91009092,2509.7,2509.6,3.8423]
[1749931113823,1.91009092,2509.7,2509.6,0.79663]
[1749931114018,0.79663,2509.6,2509.5,0.86474268]
[1749931114219,1.91147834,2509.6,2509.5,0.86474268]
[1749931114420,1.91145025,2509.6,2509.5,0.86474268]
[1749931114620,1.11482025,2509.6,2509.5,0.79665]
[1749931115327,1.91145025,2509.6,2509.5,0.79665]
[1749931115528,1.11482025,2509.6,2509.5,0.79665]
[1749931117229,1.91145025,2509.6,2509.5,0.79665]
[1749931117930,0.79663,2509.6,2509.5,0.79665]
[1749931118335,0.79666,2509.5,2509.4,1.44177]
[1749931118533,1.11448319,2509.6,2509.5,0.79663]
[1749931118534,0.79666,2509.6,2509.5,0.79663]
[1749931118723,1.11447147,2509.6,2509.5,0.79663]
[1749931120333,1.91110147,2509.6,2509.5,0.79663]
[1749931120936,1.11447147,2509.6,2509.5,0.79663]
[1749931122338,1.91110147,2509.6,2509.5,0.79663]
[1749931123536,1.11447147,2509.6,2509.5,0.79663]
[1749931124743,0.79658,2509.8,2509.7,0.7966]
[1749931124940,1.91089876,2509.8,2509.7,0.7966]
[1749931128643,0.7966,2509.7,2509.6,4.07250268]
[1749931128839,1.91091876,2509.7,2509.6,4.07250268]
[1749931129747,1.91091876,2509.7,2509.6,4.00441]
[1749931131150,1.91091876,2509.7,2509.6,0.79661]
[1749931136555,1.11431876,2509.7,2509.6,0.79661]
[1749931136756,0.79659,2509.8,2509.7,0.79657]
[1749931136960,1.91265453,2509.8,2509.7,0.86466268]
[1749931139159,1.91265453,2509.8,2509.7,0.06809268]
[1749931139360,1.91265453,2509.8,2509.7,0.86469268]
[1749931140157,1.91265453,2509.8,2509.7,0.06809268]
[1749931142862,1.91265453,2509.8,2509.7,0.86469268]
[1749931144854,1.91265453,2509.8,2509.7,0.06809268]
[1749931145959,0.79666,2509.5,2509.4,0.6451]
[1749931146152,0.79673,2509.4,2509.3,0.79673]
[1749931146555,1.91279453,2509.4,2509.3,0.79673]
[1749931147064,1.11606453,2509.4,2509.3,0.79673]
[1749931147458,0.79667,2509.5,2509.3,2.06593]
[1749931147664,0.79667,2509.5,2509.4,0.79669]
[1749931147865,1.9120275,2509.5,2509.4,0.79669]
[1749931150066,1.1153575,2509.5,2509.4,0.79669]
[1749931150267,1.9120175,2509.5,2509.4,0.79669]
[1749931151166,1.1153575,2509.5,2509.4,0.79669]
[1749931151368,1.9120175,2509.5,2509.4,0.79669]
[1749931153673,1.1153575,2509.5,2509.4,0.79669]
[1749931154173,1.9120175,2509.5,2509.4,0.79669]
[1749931156375,1.1153575,2509.5,2509.4,0.79669]
[1749931157179,1.9120175,2509.5,2509.4,0.79669]
[1749931158281,1.1153575,2509.5,2509.2,10.3379]
[1749931158470,0.79673,2509.3,2509.2,11.13463]
[1749931158670,0.79679,2509.1,2509.0,7.2558]
[1749931158875,0.79679,2509.1,2509.0,6.459]
[1749931159074,0.79682,2509.0,2508.9,0.79684]
[1749931159376,1.91234762,2509.0,2508.9,0.79684]
[1749931159680,0.79685,2508.9,2508.8,4.67127]
[1749931160171,0.6585,2509.2,2508.8,4.67127]
[1749931160372,0.79685,2508.9,2508.8,4.67127]
[1749931161380,0.79685,2508.9,2508.8,3.8744]
[1749931161874,0.79685,2508.9,2508.8,4.67129]
[1749931162178,0.79685,2508.9,2508.8,3.8744]
[1749931162479,0.79692,2508.7,2508.6,0.80291491]
[1749931162778,0.79692,2508.7,2508.6,0.69417491]
[1749931163379,0.79692,2508.7,2508.6,1.49112491]
[1749931163570,0.79691,2508.8,2508.7,0.7969]
[1749931163767,0.6585,2509.2,2508.7,3.2078]
[1749931163967,0.79677,2509.2,2509.1,0.79679]
[1749931164174,1.11307837,2509.2,2509.1,0.79679]
[1749931164473,0.79674,2509.3,2509.2,0.06809268]
[1749931164678,1.90972569,2509.3,2509.2,0.06809268]
[1749931171378,3.21812569,2509.3,2509.2,0.06809268]
[1749931175386,3.2177357,2509.3,2509.2,0.06809268]
[1749931177885,2.10514,2509.3,2509.2,0.06809268]
[1749931178289,3.21780825,2509.3,2509.2,0.06809268]
[1749931178788,2.10514,2509.3,2509.2,0.06809268]
[1749931179491,3.2178382,2509.3,2509.2,0.06809268]
[1749931179786,2.10514,2509.3,2509.2,0.06809268]
[1749931179986,3.21785528,2509.3,2509.2,0.06809268]
[1749931180287,2.10514,2509.3,2509.2,0.06809268]
[1749931180793,3.2176528,2509.3,2509.2,0.06809268]
[1749931185584,1.9092528,2509.3,2509.2,0.06809268]
[1749931189596,3.2370528,2509.3,2509.2,0.06809268]
[1749931195191,3.2370528,2509.3,2508.7,6.46]
[1749931195192,1.99192,2509.2,2508.7,6.46]
[1749931195497,0.79688,2508.8,2508.7,0.79692]
[1749931196004,0.79688,2508.9,2508.8,0.79686]
[1749931196496,1.9115566,2508.9,2508.8,0.79686]
[1749931196800,1.9115566,2508.9,2508.8,1.42406]
[1749931197796,1.1146766,2508.9,2508.8,1.42406]
[1749931197998,0.79685,2509.0,2508.9,0.79684]
[1749931198297,1.91158429,2509.0,2508.9,4.5054]
[1749931198995,1.91139193,2509.0,2508.9,4.5054]
[1749931199191,1.91139193,2509.0,2508.9,3.2078]
[1749931199490,14.5359506,2509.0,2508.2,1.3771]
[1749931199694,5.20002,2508.8,2508.3,0.6844]
[1749931199894,1.11454193,2508.7,2508.3,2.0615]
[1749931200090,1.11454193,2508.6,2508.3,2.0615]
[1749931200289,0.79701,2508.4,2508.3,2.85853]
[1749931200503,1.91155193,2508.4,2508.3,1.48143]
[1749931200998,1.11454193,2508.4,2508.3,1.48143]
[1749931201188,0.00597491,2508.6,2508.4,0.79701]
[1749931201492,1.91286489,2508.5,2508.4,3.2078]
[1749931201692,1.1158053,2508.5,2508.4,3.8393]
[1749931201898,0.80294491,2508.6,2508.4,4.63631]
[1749931202196,0.80294491,2508.6,2508.5,0.79698]
[1749931202197,0.80295491,2508.6,2508.5,0.79698]
[1749931202397,1.91833905,2508.6,2508.5,0.79698]
[1749931202599,1.12135905,2508.6,2508.5,0.79698]
[1749931203588,1.12135905,2508.6,2508.4,3.8393]
[1749931203589,1.12101295,2508.6,2508.4,3.8393]
[1749931203788,0.00597491,2508.6,2508.5,0.79698]
[1749931204100,0.00597491,2508.6,2508.5,12.24798]
[1749931204300,0.6587,2509.4,2508.7,1.99223]
[1749931204487,0.79678,2509.2,2509.0,0.79679]
[1749931204694,0.79671,2509.4,2509.3,0.7967]
[1749931205002,0.79676,2509.2,2509.1,0.6774]
[1749931205498,1.91224671,2509.2,2509.1,0.6774]
[1749931206796,1.91224671,2509.2,2509.1,1.47419]
[1749931207402,1.11548671,2509.2,2509.1,1.47419]
[1749931208403,1.91224671,2509.2,2509.1,1.47419]
[1749931208806,1.11548671,2509.2,2509.1,1.47419]
[1749931209103,1.91224671,2509.2,2509.1,1.47419]
[1749931209805,1.91224671,2509.2,2509.1,0.6774]
[1749931210104,0.79688,2508.8,2508.7,3.2078]
[1749931210307,0.79695,2508.7,2508.5,0.06809268]
[1749931210603,0.79695,2508.6,2508.5,0.86505268]
[1749931211011,0.79693,2508.7,2508.6,0.79694]
[1749931211405,0.79693,2508.7,2508.5,0.86505268]
[1749931211604,0.79695,2508.6,2508.5,0.86505268]
[1749931212110,2.66948,2509.1,2508.5,0.06809268]
[1749931212312,0.79691,2508.8,2508.7,3.2078]
[1749931212609,1.9120126,2508.8,2508.7,3.8883]
[1749931213904,1.9120126,2508.8,2508.7,0.6805]
[1749931215604,1.9120126,2508.8,2508.7,1.47742]
[1749931215806,6.551,2509.3,2508.7,3.8883]
[1749931216013,1.11495051,2509.2,2509.1,0.79677]
[1749931216218,1.91171051,2509.2,2509.1,0.79677]
[1749931217009,0.79679,2509.1,2509.0,4.00461]
[1749931217404,0.79678,2509.2,2509.1,0.79679]
[1749931217611,1.91197101,2509.2,2509.1,0.79679]
[1749931220616,1.44087491,2509.4,2509.3,0.79673]
[1749931220811,1.12056093,2509.4,2509.3,0.79673]
[1749931221011,1.12056093,2509.4,2509.2,0.79674]
[1749931221219,0.79676,2509.2,2509.1,0.06809268]
[1749931221715,2.54608095,2509.2,2509.1,0.06809268]
[1749931222616,3.79788095,2509.2,2509.1,0.06809268]
[1749931228220,2.54608095,2509.2,2509.1,0.06809268]
[1749931229018,3.85258095,2509.2,2509.1,0.06809268]
[1749931229320,7.06038095,2509.2,2509.1,0.06809268]
[1749931229523,0.79706,2508.4,2508.3,3.2078]
[1749931229924,0.79708,2508.2,2508.1,0.00597491]
[1749931230225,0.79728,2507.6,2507.3,3.2078]
[1749931230422,1.99285,2508.0,2507.3,3.2078]
[1749931230728,1.11224546,2507.9,2507.3,3.2078]
[1749931230921,0.79721,2507.8,2507.6,3.2078]
[1749931231125,0.6659,2508.0,2507.7,0.79723]
[1749931231327,0.79718,2507.9,2507.7,2.09473]
[1749931231523,0.6659,2508.0,2507.7,2.09473]
[1749931231524,1.46306,2508.0,2507.8,0.79719]
[1749931231828,1.46307,2508.0,2507.8,0.79719]
[1749931232127,1.46306,2508.0,2507.8,0.79719]
[1749931232323,0.79716,2508.0,2507.7,1.2975]
[1749931232527,0.00597491,2508.1,2508.0,0.79714]
[1749931232830,0.00597491,2508.1,2508.0,4.00494]
[1749931233629,0.6444,2508.6,2508.0,9.00494]
[1749931233829,0.6681,2508.9,2508.5,4.00476]
[1749931234023,0.79694,2508.7,2508.6,4.00475]
[1749931234233,0.7969,2508.8,2508.6,4.00475]
[1749931234431,0.7969,2508.8,2508.6,4.00473]
[1749931234735,1.46496,2508.9,2508.7,1.47962]
[1749931234932,0.79688,2508.8,2508.7,0.6827]
[1749931235330,0.79704,2508.3,2508.2,0.6668]
[1749931235528,0.79703,2508.4,2508.2,1.3483]
[1749931235731,0.79703,2508.4,2508.2,3.43225]
[1749931236031,0.79703,2508.4,2508.3,0.79704]
[1749931236233,0.79701,2508.4,2508.3,4.00484]
[1749931236432,0.79701,2508.4,2508.3,3.2078]
[1749931236628,0.79709,2508.2,2508.0,3.27589268]
[1749931236935,0.79706,2508.3,2508.1,0.79711]
[1749931237132,0.79703,2508.4,2508.2,0.79708]
[1749931237534,0.79701,2508.5,2508.0,4.56279268]
[1749931237736,0.79701,2508.5,2508.3,0.79703]
[1749931238032,1.45346,2508.6,2508.4,0.79699]
[1749931238239,1.45346,2508.6,2508.4,1.47849]
[1749931238539,0.79698,2508.5,2508.4,0.6815]
[1749931238737,1.45346,2508.6,2508.4,0.6815]
[1749931239035,0.6681,2508.9,2508.5,0.79697]
[1749931239233,0.79693,2508.7,2508.6,3.2078]
[1749931239429,0.00597491,2509.0,2508.6,3.2078]
[1749931239734,0.00597491,2509.0,2508.9,4.00465]
[1749931240237,0.80279491,2509.0,2508.9,3.2078]
[1749931241231,0.80279491,2509.0,2508.9,4.00465]
[1749931241434,0.80279491,2509.0,2508.9,3.2078]
[1749931242234,0.79685,2508.9,2508.8,0.6457]
[1749931242837,0.79692,2508.7,2508.6,3.2078]
[1749931243335,0.79692,2508.7,2508.6,4.00475]
[1749931244136,0.79692,2508.7,2508.6,3.2078]
[1749931244942,0.79697,2508.6,2508.5,0.79697]
[1749931245141,0.79685,2508.9,2508.4,0.79699]
[1749931245440,0.79701,2508.4,2508.3,9.7588]
[1749931245640,0.79701,2508.4,2508.3,3.2078]
[1749931246239,0.79701,2508.4,2508.3,4.00484]
[1749931246439,0.6255,2508.6,2508.5,0.79698]
[1749931246640,0.6599,2508.8,2508.5,0.79697]
[1749931246842,0.79697,2508.6,2508.5,0.79697]
[1749931247040,0.79693,2508.7,2508.6,0.79694]
[1749931247247,0.6599,2508.8,2508.3,4.5169]
[1749931247544,0.79694,2508.7,2508.6,0.79694]
[1749931247739,0.79695,2508.6,2508.5,0.79696]
[1749931248536,0.79694,2508.7,2508.6,0.79694]
[1749931248743,0.6525,2508.9,2508.6,3.2078]
[1749931248939,1.44937,2508.9,2508.8,0.79688]
[1749931249139,0.00597491,2509.0,2508.9,0.79685]
[1749931249437,0.00597491,2509.0,2508.9,3.2078]
[1749931249438,0.80279491,2509.0,2508.9,3.2078]
[1749931250041,0.79693,2508.7,2508.6,3.2078]
[1749931250242,0.7969,2508.8,2508.7,0.79688]
[1749931252841,0.79692,2508.7,2508.6,9.6588]
[1749931253049,0.79691,2508.8,2508.7,0.79691]
[1749931253245,0.6536,2508.9,2508.6,10.9463]
[1749931253443,0.79692,2508.7,2508.6,10.9463]
[1749931253642,0.79692,2508.7,2508.6,11.74325]
[1749931254149,0.6536,2508.9,2508.6,10.9463]
[1749931254349,0.80281491,2509.0,2508.6,10.9463]
[1749931254549,0.80281491,2509.0,2508.9,3.2078]
[1749931255344,0.79695,2508.6,2508.5,0.06809268]
[1749931255544,1.3763,2508.9,2508.5,0.06809268]
[1749931255746,0.79694,2508.7,2508.6,0.79694]
[1749931255955,1.90671134,2508.7,2508.6,1.2797]
[1749931256151,0.79695,2508.6,2508.5,0.86505268]
[1749931256349,0.79695,2508.6,2508.5,0.06809268]
[1749931256553,0.79695,2508.6,2508.5,0.86507268]
[1749931257046,0.79695,2508.6,2508.5,0.06809268]
[1749931257349,1.90676967,2508.6,2508.5,0.06809268]
[1749931259342,1.90704524,2508.6,2508.5,0.06809268]
[1749931259542,1.282,2508.8,2508.5,0.06809268]
[1749931259852,0.79695,2508.6,2508.5,0.06809268]
[1749931260052,1.282,2508.8,2508.6,0.79694]
[1749931260245,2.0789,2508.8,2508.6,0.79694]
[1749931260446,2.0789,2508.8,2508.7,0.79692]
[1749931260941,0.00597491,2509.0,2508.8,0.79687]
[1749931261145,1.90863177,2508.9,2508.8,4.00467]
[1749931261355,1.90863177,2508.9,2508.8,3.2078]
[1749931261554,1.11178177,2508.9,2508.8,4.00468]
[1749931262057,1.90914731,2508.9,2508.8,3.2078]
[1749931262353,0.79692,2508.7,2508.6,2.05632]
[1749931263153,0.79695,2508.6,2508.5,10.52385268]
[1749931263653,0.79694,2508.7,2508.6,0.79695]
[1749931264255,1.27667491,2509.0,2508.6,0.6302]
[1749931264454,0.79691,2508.8,2508.7,0.79691]
[1749931264650,1.11293616,2508.8,2508.7,0.79691]
[1749931264957,0.00597491,2509.0,2508.9,0.79685]
[1749931265149,0.00597491,2509.0,2508.9,4.00465]
[1749931265552,0.00597491,2509.0,2508.9,10.45465]
[1749931271451,0.80279491,2509.0,2508.9,9.6578]
[1749931271659,0.80279491,2509.0,2508.9,6.45]
[1749931271864,0.79692,2508.7,2508.6,10.288]
[1749931272649,1.99258,2508.4,2507.6,0.00597491]
[1749931272855,9.55447224,2508.3,2507.6,0.00597491]
[1749931273160,0.79723,2507.7,2507.6,0.00597491]
[1749931275058,4.00503,2507.7,2507.6,0.00597491]
[1749931275261,0.79723,2507.7,2507.6,0.00597491]
[1749931275559,10.9789,2508.3,2507.6,0.00597491]
[1749931275764,1.11006911,2508.2,2507.6,0.00597491]
[1749931276060,0.79723,2507.7,2507.6,0.00597491]
[1749931277359,0.79722,2507.8,2507.6,0.00597491]
[1749931277662,0.79721,2507.8,2507.6,0.80323491]
[1749931277964,4.4722,2508.0,2507.6,0.00597491]
[1749931278165,4.4722,2508.0,2507.7,0.79722]
[1749931278363,0.7972,2507.9,2507.6,0.80321491]
[1749931278556,0.79721,2507.8,2507.6,0.80321491]
[1749931278851,0.79719,2507.9,2507.7,0.79723]
[1749931279357,4.4722,2508.0,2507.8,0.79719]
[1749931279358,5.26937,2508.0,2507.8,0.79719]
[1749931279664,0.79721,2507.8,2507.7,0.79722]
[1749931279962,0.7972,2507.8,2507.7,0.79723]
[1749931280167,0.7972,2507.8,2507.7,0.86532268]
[1749931280367,0.79719,2507.9,2507.7,0.86532268]
[1749931280565,0.79719,2507.9,2507.8,0.7972]
[1749931281666,0.79719,2507.9,2507.7,0.06809268]
[1749931281966,0.7972,2507.8,2507.7,0.86532268]
[1749931282769,0.79718,2507.9,2507.8,0.79719]
[1749931283471,0.7972,2507.8,2507.7,0.86531268]
[1749931283670,0.7972,2507.8,2507.7,0.06809268]
[1749931285865,0.7972,2507.8,2507.7,0.86532268]
[1749931286466,0.7972,2507.8,2507.7,0.06809268]
[1749931287563,3.2078,2508.0,2507.7,0.06809268]
[1749931287770,3.2078,2508.0,2507.7,1.45509268]
[1749931287967,3.2078,2508.0,2507.8,0.6438]
[1749931288158,3.2078,2508.0,2507.9,0.79717]
[1749931288871,4.00494,2508.0,2507.9,0.79717]
[1749931289170,3.2078,2508.0,2507.9,0.79717]
[1749931289464,3.2078,2508.0,2507.9,2.18417]
[1749931289663,5.734,2508.2,2508.1,0.79711]
[1749931291073,0.79716,2508.0,2507.9,0.79715]
[1749931292374,0.79713,2508.1,2508.0,0.79712]
[1749931292671,0.7971,2508.2,2508.1,0.79709]
[1749931292870,0.79715,2508.0,2507.9,0.79717]
[1749931293267,0.79713,2508.1,2508.0,0.79712]
[1749931294567,1.3201,2508.3,2507.9,3.2078]
[1749931294768,2.11717,2508.3,2508.2,0.79707]
[1749931296776,1.3201,2508.3,2508.2,0.79707]
[1749931296969,2.11714,2508.3,2508.2,0.79707]
[1749931297169,1.3201,2508.3,2508.0,0.06809268]
[1749931297373,0.79711,2508.1,2508.0,0.86523268]
[1749931297866,0.79711,2508.1,2508.0,0.06809268]
[1749931298072,0.79711,2508.1,2508.0,0.86523268]
[1749931298467,0.79709,2508.2,2508.1,0.79708]
[1749931298672,5.32496,2508.3,2508.2,0.79707]
[1749931298872,2.11716,2508.3,2508.2,0.79707]
[1749931299071,0.6465,2508.3,2508.2,0.79707]
[1749931299267,1.42797,2508.6,2508.1,0.79711]
[1749931299469,0.631,2508.6,2508.4,0.79698]
[1749931299676,0.631,2508.6,2508.2,0.6332]
[1749931300072,0.79699,2508.5,2508.4,0.797]
[1749931300382,0.631,2508.6,2508.2,0.6332]
[1749931300681,0.6398,2508.7,2508.6,0.79695]
[1749931300972,0.6398,2508.7,2508.2,0.6332]
[1749931301179,0.79704,2508.3,2508.2,0.6332]
[1749931301575,0.79704,2508.3,2508.2,1.43028]
[1749931302076,0.79704,2508.3,2508.2,0.6332]
[1749931302268,0.631,2508.5,2508.0,6.52009268]
[1749931302473,0.7971,2508.2,2508.0,7.31720268]
[1749931302872,0.79706,2508.3,2508.2,0.79708]
[1749931303473,0.79707,2508.2,2508.1,0.79709]
[1749931303977,0.79706,2508.3,2508.1,0.79709]
[1749931304178,0.79707,2508.2,2508.1,0.79709]
[1749931304980,0.79711,2508.1,2508.0,8.60591268]
[1749931305186,0.7971,2508.2,2508.1,0.7971]
[1749931306493,1.972,2508.5,2508.0,7.80879268]
[1749931306690,1.11406715,2508.4,2508.0,6.52009268]
[1749931306990,0.7971,2508.2,2508.1,0.7971]
[1749931308889,0.79711,2508.1,2508.0,0.86521268]
[1749931309691,0.79711,2508.1,2508.0,0.79712]
[1749931310394,0.7971,2508.2,2508.1,0.7971]
[1749931310585,0.7971,2508.2,2508.1,0.86519268]
[1749931311686,0.7971,2508.2,2508.1,0.06809268]
[1749931311996,0.7971,2508.2,2508.1,0.86520268]
[1749931312399,1.9125421,2508.2,2508.1,0.86520268]
[1749931315098,1.1154421,2508.2,2508.1,0.86520268]
[1749931315599,1.9125121,2508.2,2508.1,0.86520268]
[1749931315797,1.1154421,2508.2,2508.1,0.86520268]
[1749931316098,1.9125121,2508.2,2508.1,0.86520268]
[1749931316796,1.9125121,2508.2,2508.1,0.06809268]
[1749931320195,1.1154421,2508.2,2508.1,0.06809268]
[1749931320395,1.9125121,2508.2,2508.1,0.86520268]
[1749931320596,5.734,2508.5,2508.4,0.79701]
[1749931320804,0.66567491,2509.0,2508.9,0.79685]
[1749931320994,0.00597491,2509.0,2508.9,0.79685]
[1749931321190,1.12273211,2509.0,2508.9,0.79685]
[1749931321391,8.81817306,2509.7,2508.9,7.14715]
[1749931321595,1.11735611,2509.6,2509.5,0.79666]
[1749931322202,1.91398611,2509.6,2509.4,0.79669]
[1749931322397,1.1155861,2509.5,2509.4,2.14697]
[1749931322704,0.6597,2509.7,2509.6,0.79663]
[1749931322908,3.21377491,2509.8,2509.6,0.7966]
[1749931323100,3.21377491,2509.8,2509.7,0.7966]
[1749931323101,0.00597491,2509.8,2509.7,0.7966]
[1749931324809,0.80255491,2509.8,2509.6,6.03161]
[1749931325100,0.80255491,2509.8,2509.7,1.3481]
[1749931325306,0.00597491,2509.8,2509.7,0.7966]
[1749931325494,0.00597491,2509.8,2509.7,2.1447]
[1749931326004,0.00597491,2509.8,2509.7,1.41619268]
[1749931326204,0.80254491,2509.8,2509.7,1.41619268]
[1749931326602,0.00597491,2509.8,2509.7,2.21279268]
[1749931326904,0.80254491,2509.8,2509.7,1.41619268]
[1749931327309,0.00597491,2509.8,2509.7,2.21279268]
[1749931327500,0.00597491,2509.8,2509.7,1.41619268]
[1749931327703,0.80254491,2509.8,2509.7,1.41619268]
[1749931328108,0.00597491,2509.8,2509.7,2.21279268]
[1749931328402,0.00597491,2509.8,2509.7,1.41619268]
[1749931328605,0.80254491,2509.8,2509.7,1.41619268]
[1749931329003,0.80254491,2509.8,2509.7,0.06809268]
[1749931331612,4.01034491,2509.8,2509.7,0.06809268]
[1749931332308,0.79673,2509.3,2509.2,0.00597491]
[1749931332507,4.00453,2509.3,2509.2,0.00597491]
[1749931333205,0.79673,2509.3,2509.2,0.00597491]
[1749931334009,4.00453,2509.3,2509.2,0.00597491]
[1749931335414,0.6578,2509.7,2509.3,1.99182]
[1749931335707,0.79662,2509.7,2509.5,0.79664]
[1749931335900,0.79666,2509.5,2509.4,9.87108]
[1749931336104,0.79665,2509.6,2509.5,0.79665]
[1749931336610,0.00597491,2509.8,2509.4,9.0744]
[1749931336812,0.79662,2509.7,2509.4,9.0744]
[1749931337013,0.79662,2509.7,2509.6,0.79663]
[1749931337707,0.00597491,2509.8,2509.6,0.79663]
[1749931337910,0.7966,2509.7,2509.6,0.79663]
[1749931338213,0.80254491,2509.8,2509.7,0.86469268]
[1749931338810,0.80254491,2509.8,2509.7,0.06809268]
[1749931339012,0.80254491,2509.8,2509.7,0.86469268]
[1749931339315,0.80254491,2509.8,2509.7,0.06809268]
[1749931339514,0.80254491,2509.8,2509.7,0.86469268]
[1749931339820,0.80254491,2509.8,2509.7,0.06809268]
[1749931347713,1.91455614,2509.8,2509.7,0.06809268]
[1749931350015,1.91455614,2509.8,2509.7,0.86469268]
[1749931350222,1.91455614,2509.8,2509.7,0.06809268]
[1749931350619,1.91455614,2509.8,2509.7,0.86469268]
[1749931350816,0.80254491,2509.8,2509.7,0.86469268]
[1749931351517,0.00597491,2509.8,2509.7,0.86469268]
[1749931353022,0.80254491,2509.8,2509.7,0.86469268]
[1749931353330,0.80254491,2509.8,2509.7,0.06809268]
[1749931354525,0.80254491,2509.8,2509.7,0.86469268]
[1749931356125,0.80254491,2509.8,2509.7,0.06809268]
[1749931356625,0.80254491,2509.8,2509.7,0.86469268]
[1749931356921,0.00597491,2509.8,2509.7,0.86469268]
[1749931358323,0.79646,2510.2,2510.1,0.79647]
[1749931358524,1.91036532,2510.2,2510.1,0.79647]
[1749931359421,0.79647,2510.1,2510.0,2.15158]
[1749931360923,3.2078,2510.3,2510.0,1.3551]
[1749931361230,0.79647,2510.1,2510.0,2.15159]
[1749931362024,0.00597491,2510.4,2510.0,1.3551]
[1749931362430,0.79641,2510.3,2510.2,0.79641]
[1749931363227,0.80237491,2510.4,2510.3,0.79641]
[1749931363529,0.00597491,2510.4,2510.3,0.79641]
[1749931363921,0.80236491,2510.4,2510.3,0.79641]
[1749931364128,0.00597491,2510.4,2510.3,0.79641]
[1749931364630,0.00597491,2510.4,2510.3,7.23941]
[1749931365532,0.80235491,2510.4,2510.3,7.23941]
[1749931365723,0.00597491,2510.4,2510.3,7.23941]
[1749931367931,5.30542,2510.9,2510.8,0.79625]
[1749931368128,6.41651056,2510.9,2510.5,5.19865]
[1749931368428,4.63442,2510.9,2510.8,0.79625]
[1749931368628,1.1108198,2510.9,2510.8,0.79625]
[1749931368822,0.79619,2511.0,2510.9,0.7962]
[1749931369823,0.79619,2511.0,2510.9,1.4548]
[1749931370127,0.00597491,2511.1,2511.0,0.79619]
[1749931370431,0.00597491,2511.1,2511.0,2.06639]
[1749931370627,0.00597491,2511.1,2511.0,2.72029]
[1749931372034,0.80212491,2511.1,2511.0,1.2702]
[1749931372238,0.00597491,2511.1,2510.8,6.50809268]
[1749931372536,0.79619,2511.0,2510.9,0.79619]
[1749931372728,0.80215491,2511.1,2511.0,0.79619]
[1749931373325,0.00597491,2511.1,2511.0,0.79619]
[1749931374728,0.6789,2511.6,2511.5,0.79603]
[1749931374936,3.851,2511.7,2511.6,0.796]
[1749931375236,0.6432,2511.7,2511.6,0.796]
[1749931375730,0.6482,2511.8,2511.7,0.79596]
[1749931376033,0.00389502,2511.9,2511.8,0.79593]
[1749931376227,0.00389502,2511.9,2511.8,7.23493]
[1749931376429,0.00389502,2511.9,2511.8,8.58863]
[1749931377025,0.00389502,2511.9,2511.8,7.23493]
[1749931377635,0.00389502,2511.9,2511.8,8.58863]
[1749931377829,3.2078,2512.3,2512.2,0.79581]
[1749931378337,0.79581,2512.2,2511.8,7.7927]
[1749931378631,0.79584,2512.1,2511.9,0.79589]
[1749931378832,0.6313,2512.2,2511.8,7.7927]
[1749931379040,3.2078,2512.3,2512.1,0.79582]
[1749931379232,4.00359,2512.3,2512.1,0.79582]
[1749931379531,4.00359,2512.3,2511.8,1.3537]
[1749931379532,3.2078,2512.3,2511.8,1.3537]
[1749931379728,0.79586,2512.1,2511.9,31.81189]
[1749931380334,0.79587,2512.0,2511.9,0.7959]
[1749931380635,1.2863,2512.1,2511.7,6.44397491]
[1749931380931,0.79588,2512.0,2511.7,6.44397491]
[1749931381138,0.79588,2512.0,2511.9,0.7959]
[1749931381330,0.79588,2512.0,2511.8,0.79591]
[1749931381636,0.7959,2511.9,2511.8,0.79593]
[1749931382036,1.2863,2512.1,2511.8,0.79592]
[1749931382336,0.79591,2511.9,2511.8,0.79592]
[1749931382536,0.79591,2511.9,2511.7,0.80191491]
[1749931382830,0.79593,2511.8,2511.7,0.00597491]
[1749931383027,2.17103,2511.8,2511.7,0.80193491]
[1749931383227,2.17103,2511.8,2511.7,0.00597491]
[1749931383824,3.2078,2512.0,2511.7,0.00597491]
[1749931384029,4.0037,2512.0,2511.9,0.7959]
[1749931384735,3.2078,2512.0,2511.7,0.00597491]
[1749931384940,5.32369,2512.0,2511.9,0.7959]
[1749931385736,3.2078,2512.0,2511.9,7.2329]
[1749931386037,5.734,2512.1,2512.0,0.79587]
[1749931386237,5.734,2512.1,2512.0,26.64247]